fUST/lending_fUST_20250804
["ID","MTS","AMOUNT","RATE_DAILY","PERIOD"]
[377224743,1754303459447,-460.0,0.00037131,2]
[377224744,1754303459462,-658.32,0.00037131,2]
[377224745,1754303459484,-460.0,0.00037131,2]
[377224746,1754303459498,-488.29,0.00037131,2]
[377224747,1754303459513,-460.0,0.00037131,2]
[377224748,1754303459527,-460.0,0.00037131,2]
[377224749,1754303459541,-460.0,0.00037131,2]
[377224750,1754303459556,-460.0,0.00037131,2]
[377224751,1754303459570,-460.0,0.00037131,2]
[377224752,1754303459585,-460.0,0.00037131,2]
[377224753,1754303459599,-460.0,0.00037131,2]
[377224754,1754303459614,-460.0,0.00037131,2]
[377224755,1754303459629,-460.0,0.00037131,2]
[377224756,1754303459643,-460.0,0.00037131,2]
[377224757,1754303459658,-988.51,0.00037131,2]
[377224758,1754303459672,-460.0,0.00037131,2]
[377224759,1754303459686,-460.0,0.00037131,2]
[377224760,1754303459700,-460.0,0.00037131,2]
[377224761,1754303459715,-532.94,0.00037131,2]
[377224762,1754303459735,-460.0,0.00037131,2]
[377224763,1754303459750,-460.0,0.00037131,2]
[377224764,1754303459761,-460.0,0.00037131,2]
[377224765,1754303459773,-460.0,0.00037131,2]
[377224766,1754303459783,-669.54,0.00037131,2]
[377224767,1754303459793,-460.0,0.00037131,2]
[377224768,1754303459804,-460.0,0.00037131,2]
[377224769,1754303459813,-460.0,0.00037131,2]
[377224770,1754303459823,-2434.32,0.00037131,2]
[377224771,1754303459832,-1790.38,0.00037131,2]
[377224772,1754303459842,-460.0,0.00037131,2]
[377224773,1754303459852,-1017.87,0.00037131,2]
[377224774,1754303459861,-892.82,0.00037131,2]
[377224775,1754303459870,-460.0,0.00037131,2]
[377224776,1754303459880,-1673.54,0.00037131,2]
[377224777,1754303459890,-1347.64,0.00037131,2]
[377224778,1754303459899,-507.16,0.00037131,2]
[377224779,1754303459909,-460.0,0.00037131,2]
[377224780,1754303459918,-460.0,0.00037131,2]
[377224781,1754303460125,-2659.51,0.00037131,2]
[377224782,1754303460140,-1282.94,0.00037131,2]
[377224783,1754303460149,-547.39,0.00037131,2]
[377224784,1754303460158,-500.0,0.00037132,6]
[377224785,1754303460167,-16517.47,0.00037132,2]
[377224786,1754303460177,-1323.01,0.00037132,2]
[377224787,1754303460186,-7476.02,0.00037132,2]
[377224788,1754303460195,-196.11490759,0.00037132,2]
[377224789,1754303460205,-3933.54,0.00037132,2]
[377224790,1754303460214,-2128.75,0.00037133,2]
[377224791,1754303460225,-460.0,0.00037133,2]
[377224792,1754303460234,-2479.48,0.00037133,2]
[377224793,1754303460244,-460.0,0.00037133,2]
[377224794,1754303460253,-1021.41,0.00037133,2]
[377224795,1754303460264,-826.45,0.00037133,2]
[377224796,1754303460274,-460.0,0.00037133,2]
[377224797,1754303460284,-3088.17,0.00037133,2]
[377224798,1754303460293,-475.07,0.00037133,2]
[377224799,1754303460302,-460.0,0.00037133,2]
[377224800,1754303460312,-694.91,0.00037133,2]
[377224801,1754303460321,-1226.35,0.00037133,2]
[377224802,1754303460331,-1313.4,0.00037133,2]
[377224803,1754303460340,-460.0,0.00037133,2]
[377224804,1754303460349,-460.0,0.00037133,2]
[377224805,1754303460359,-1976.52,0.00037133,2]
[377224806,1754303460368,-760.55,0.00037133,2]
[377224807,1754303460377,-1919.9,0.00037133,2]
[377224808,1754303460387,-460.0,0.00037133,2]
[377224809,1754303460396,-460.0,0.00037133,2]
[377224810,1754303460405,-1982.17,0.00037133,2]
[377224811,1754303460415,-460.0,0.00037133,2]
[377224812,1754303460424,-460.0,0.00037133,2]
[377224813,1754303460433,-859.86,0.00037133,2]
[377224814,1754303460442,-460.0,0.00037133,2]
[377224815,1754303460451,-460.0,0.00037133,2]
[377224816,1754303460461,-847.55,0.00037133,2]
[377224817,1754303460471,-460.0,0.00037133,2]
[377224818,1754303460480,-534.64,0.00037133,2]
[377224819,1754303460490,-460.0,0.00037133,2]
[377224820,1754303460499,-460.0,0.00037133,2]
[377224821,1754303460508,-530.99,0.00037133,2]
[377224822,1754303460518,-1893.38,0.00037133,2]
[377224823,1754303460527,-1421.8,0.00037133,2]
[377224824,1754303460537,-1103.48,0.00037133,2]
[377224825,1754303460546,-460.0,0.00037133,2]
[377224826,1754303460556,-500.0,0.00037133,2]
[377224827,1754303460565,-460.0,0.00037133,2]
[377224828,1754303460574,-324.1597799,0.00037133,2]
[377224829,1754303460584,-619.57,0.00037133,2]
[377224830,1754303460594,-1920.5,0.00037133,2]
[377224831,1754303460604,-780.86,0.00037133,2]
[377224832,1754303460613,-1241.24,0.00037143,2]
[377224833,1754303460623,-728.2,0.00037143,2]
[377224834,1754303460632,-5667.12,0.00037143,2]
[377224835,1754303460642,-151.0,0.00037143,14]
[377224836,1754303460651,-155.348167,0.00037143,14]
[377224837,1754303460661,-197.317515,0.00037143,14]
[377224838,1754303460671,-197.317515,0.00037143,14]
[377224839,1754303460680,-1081.47,0.00037143,2]
[377224840,1754303460689,-6359.95,0.00037143,2]
[377224841,1754303460699,-759.74,0.00037143,2]
[377224842,1754303460708,-460.0,0.00037143,2]
[377224843,1754303460721,-703.44,0.00037143,2]
[377224844,1754303460731,-1634.51,0.00037143,2]
[377224845,1754303460741,-865.36,0.00037143,2]
[377224846,1754303460750,-460.0,0.00037143,2]
[377224847,1754303460760,-714.63,0.00037143,2]
[377224848,1754303460770,-2914.88,0.00037143,2]
[377224849,1754303460779,-460.0,0.00037143,2]
[377224850,1754303460789,-460.0,0.00037161,2]
[377224851,1754303460799,-460.0,0.00037161,2]
[377224852,1754303460810,-798.99,0.00037164,2]
[377224853,1754303460819,-554.81,0.00037164,2]
[377224854,1754303460828,-1931.1,0.00037164,2]
[377224855,1754303460838,-700.4,0.00037164,2]
[377224856,1754303460847,-705.21,0.00037164,2]
[377224857,1754303460856,-1047.04,0.00037164,2]
[377224858,1754303460865,-460.0,0.00037164,2]
[377224859,1754303460875,-945.55,0.00037164,2]
[377224860,1754303460884,-460.0,0.00037164,2]
[377224861,1754303460893,-460.0,0.00037164,2]
[377224862,1754303460903,-7270.13,0.00037164,2]
[377224863,1754303460913,-460.0,0.00037164,2]
[377224864,1754303460922,-609.52,0.00037164,2]
[377224865,1754303460931,-1006.25,0.00037164,2]
[377224866,1754303460941,-964.32,0.00037164,2]
[377224867,1754303460950,-676.48,0.00037164,2]
[377224868,1754303460959,-5287.54,0.00037164,2]
[377224869,1754303460969,-460.0,0.00037164,2]
[377224870,1754303460979,-500.0,0.00037166,2]
[377224871,1754303460988,-460.0,0.00037166,2]
[377224872,1754303460997,-460.0,0.00037166,2]
[377224873,1754303461006,-353.0648171,0.00037166,2]
[377224874,1754303461016,-460.0,0.00037166,2]
[377224875,1754303461025,-581.96,0.00037166,2]
[377224876,1754303461034,-460.0,0.00037166,2]
[377224877,1754303461044,-460.0,0.00037166,2]
[377224878,1754303461053,-460.0,0.00037166,2]
[377224879,1754303461063,-460.0,0.00037166,2]
[377224880,1754303461073,-490.2,0.00037166,2]
[377224881,1754303461082,-460.0,0.00037166,2]
[377224882,1754303461091,-460.0,0.00037166,2]
[377224883,1754303461101,-460.0,0.00037166,2]
[377224884,1754303461110,-313.88440839,0.00037166,2]
[377224885,1754303461119,-668.44,0.00037166,2]
[377224886,1754303461129,-460.0,0.00037166,2]
[377224887,1754303461138,-460.0,0.00037166,2]
[377224888,1754303461149,-460.0,0.00037166,2]
[377224889,1754303461159,-460.0,0.00037166,2]
[377224890,1754303461169,-64.64902053,0.00037166,2]
[377224891,1754303463814,-70.92265862,0.00034968,2]
[377224892,1754303463827,-429.07734138,0.00034968,2]
[377224893,1754303463838,-500.0,0.00034968,7]
[377224894,1754303463847,-500.0,0.00034968,2]
[377224895,1754303463857,-500.0,0.00034968,7]
[377224896,1754303463866,-252.65925509,0.00034968,7]
[377224897,1754303463882,-247.34074491,0.00034968,7]
[377224898,1754303463892,-500.0,0.00034968,2]
[377224899,1754303463902,-500.0,0.00034968,7]
[377224900,1754303463911,-500.0,0.00034968,7]
[377224901,1754303463921,-486.49632528,0.00034968,7]
[377224902,1754303463931,-505.88148203,0.00034968,2]
[377224907,1754303464447,-115.64372308,0.00034968,2]
[377224908,1754303464457,-500.0,0.00034968,7]
[377224909,1754303464466,-500.0,0.00034968,7]
[377224910,1754303464475,-500.0,0.00034968,2]
[377224911,1754303464485,-500.0,0.00034968,7]
[377224912,1754303464494,-500.0,0.00034968,7]
[377224913,1754303464503,-500.0,0.00034968,7]
[377224914,1754303464513,-500.0,0.00034968,2]
[377224915,1754303464522,-500.0,0.00034968,7]
[377224916,1754303464531,-500.0,0.00034968,7]
[377224917,1754303464540,-500.0,0.00034968,7]
[377224918,1754303464548,-500.0,0.00034968,2]
[377224919,1754303464557,-500.0,0.00034968,7]
[377224920,1754303464566,-500.0,0.00034968,7]
[377224921,1754303464575,-500.0,0.00034968,7]
[377224922,1754303464585,-500.0,0.00034968,2]
[377224923,1754303464594,-500.0,0.00034968,7]
[377224924,1754303464603,-500.0,0.00034968,7]
[377224925,1754303464612,-500.0,0.00034968,7]
[377224926,1754303464621,-500.0,0.00034968,7]
[377224927,1754303464630,-500.0,0.00034968,7]
[377224928,1754303464639,-500.0,0.00034968,7]
[377224929,1754303464649,-500.0,0.00034968,7]
[377224930,1754303464657,-500.0,0.00034968,7]
[377224931,1754303464666,-500.0,0.00034968,2]
[377224932,1754303464675,-500.0,0.00034968,7]
[377224933,1754303464684,-500.0,0.00034968,7]
[377224934,1754303464694,-500.0,0.00034968,7]
[377224935,1754303464703,-500.0,0.00034968,7]
[377224936,1754303464712,-500.0,0.00034968,7]
[377224937,1754303464725,-500.0,0.00034968,7]
[377224938,1754303464734,-500.0,0.00034968,7]
[377224939,1754303464742,-500.0,0.00034968,7]
[377224940,1754303464751,-500.0,0.00034968,7]
[377224941,1754303464760,-500.0,0.00034968,7]
[377224942,1754303464769,-500.0,0.00034968,7]
[377224943,1754303464778,-500.0,0.00034968,7]
[377224944,1754303464787,-500.0,0.00034968,7]
[377224945,1754303464796,-500.0,0.00034968,7]
[377224946,1754303464812,-500.0,0.00034968,7]
[377224947,1754303464821,-500.0,0.00034968,7]
[377224948,1754303464831,-500.0,0.00034968,7]
[377224949,1754303464840,-500.0,0.00034968,7]
[377224950,1754303464850,-500.0,0.00034968,7]
[377224951,1754303464859,-193.41018502,0.00034968,7]
[377224952,1754303464868,-500.0,0.00034968,2]
[377224953,1754303464877,-500.0,0.00034968,7]
[377224954,1754303464886,-500.0,0.00034968,7]
[377224955,1754303464896,-500.0,0.00034968,7]
[377224956,1754303464906,-500.0,0.00034968,7]
[377224957,1754303464915,-500.0,0.00034968,7]
[377224958,1754303464924,-500.0,0.00034968,7]
[377224959,1754303464933,-500.0,0.00034968,7]
[377224960,1754303464942,-500.0,0.00034968,7]
[377224961,1754303464951,-500.0,0.00034968,7]
[377224962,1754303464959,-500.0,0.00034968,7]
[377224963,1754303464969,-460.0,0.00034969,2]
[377224964,1754303464978,-708.7,0.00034969,10]
[377224965,1754303464986,-266.62401085,0.00035243,2]
[377224967,1754303465293,-193.37598915,0.00035243,2]
[377224968,1754303465303,-312.67817699,0.00035751,2]
[377224969,1754303465315,-147.32182301,0.00035751,2]
[377224971,1754303465325,-460.0,0.00036025,2]
[377224972,1754303465335,-460.0,0.00036299,2]
[377224973,1754303465345,-460.0,0.00036573,2]
[377224974,1754303465354,-460.0,0.00036847,2]
[377224975,1754303465364,-12509.66,0.00036897,2]
[377224977,1754303465373,-596.2268714,0.00037121,2]
[377224978,1754303465386,-395.35097947,0.00037166,2]
[377224979,1754303465396,-553.68,0.00037166,2]
[377224980,1754303465406,-1105.82,0.00037166,2]
[377224981,1754303465415,-460.0,0.00037166,2]
[377224982,1754303465427,-460.0,0.00037166,2]
[377224984,1754303465442,-460.0,0.00037166,2]
[377224985,1754303465452,-584.57,0.00037166,2]
[377224986,1754303465461,-473.09,0.00037166,2]
[377224987,1754303465470,-460.0,0.00037166,2]
[377224988,1754303465480,-460.0,0.00037166,2]
[377224990,1754303465489,-1302.84,0.00037171,2]
[377224991,1754303465499,-1463.59,0.00037171,2]
[377224992,1754303465509,-1954.52603872,0.00037171,2]
[377224993,1754303465522,-2790.07396128,0.00037171,2]
[377224994,1754303465532,-989.06,0.00037171,2]
[377224996,1754303465541,-1220.84150872,0.00037171,2]
[377225007,1754303525470,159.0,0.00023041,9]
[377225009,1754303585984,-206.54635379,0.00033704,2]
[377225010,1754303587916,-412.84866725,0.00033704,2]
[377225011,1754303591590,-260.26875273,0.00033704,2]
[377225012,1754303593204,-216.18338158,0.00033704,2]
[377225013,1754303594832,-576.32,0.00033704,2]
[377225014,1754303597209,-980.0,0.00033704,2]
[377225015,1754303597286,-10.37022185,0.00033704,2]
[377225016,1754303657184,-167.96550509,0.00033676,2]
[377225017,1754303659577,-363.40272191,0.00033676,2]
[377225020,1754303729795,-186.1345682,0.00033657,2]
[377225021,1754303733732,-244.099502,0.00033657,2]
[377225022,1754303737167,-223.36648507,0.00033657,2]
[377225023,1754303738881,-215.639,0.00033657,2]
[377225024,1754303740964,-160.0,0.00033657,2]
[377225025,1754303742930,-295.18551523,0.00033657,2]
[377225026,1754303744198,1350.840201,0.000298,2]
[377225027,1754303747538,-181.62222343,0.00033657,2]
[377225028,1754303749210,-215.334735,0.00033657,2]
[377225029,1754303753952,-238.31882157,0.00033657,2]
[377225030,1754303756270,-162.74426207,0.00033657,2]
[377225031,1754303758061,-537.6786192,0.00033657,2]
[377225032,1754303761358,-246.87546046,0.00033657,2]
[377225033,1754303785352,-400.0,0.00033656,2]
[377225034,1754303785373,-7086.0,0.00033657,2]
[377225035,1754303812190,150.0,0.00033,2]
[377225036,1754303835917,-212.53554802,0.00033557,2]
[377225038,1754303860281,-573.0,0.00033615,2]
[377225039,1754303939338,312.16666667,0.00029,10]
[377225040,1754303988988,-187.46445198,0.0003343,32]
[377225041,1754303997308,-92.28166547,0.0003343,32]
[377225042,1754304066944,-150.0,0.0003311,2]
[377225043,1754304066971,-24900.0,0.00033578,2]
[377225044,1754304066993,-36.0,0.00033615,2]
[377225046,1754304205017,-175.775083,0.00033578,2]
[377225047,1754304205038,-57.0,0.00033615,2]
[377225048,1754304205059,-7.00080777,0.00033657,2]
[377225049,1754304205081,-92.22410923,0.00034,2]
[377225051,1754304401318,-238.29172907,0.000347,2]
[377225052,1754304401340,-150.0,0.0003479,2]
[377225053,1754304401361,-261.70845254,0.000348,2]
[377225054,1754304401382,-288.12846728,0.00034857,2]
[377225055,1754304401403,-541.97429406,0.00034864,2]
[377225056,1754304401429,-2764.1670565,0.000349,31]
[377225057,1754304401450,-288.12846726,0.00034929,2]
[377225058,1754304401474,-341.77,0.00034947,10]
[377225059,1754304401498,-533.62,0.00034947,10]
[377225060,1754304401520,-444.68,0.00034947,10]
[377225061,1754304401541,-151.0,0.00034948,2]
[377225062,1754304401562,-1600.0,0.00034953,3]
[377225063,1754304401583,-400.0,0.00034954,2]
[377225064,1754304401607,-530.16393733,0.00034954,7]
[377225065,1754304401629,-500.0,0.00034954,2]
[377225066,1754304401651,-500.0,0.00034954,7]
[377225067,1754304401677,-500.0,0.00034954,2]
[377225068,1754304401699,-500.0,0.00034954,7]
[377225069,1754304401719,-441.3890108,0.00034954,7]
[377225070,1754304401741,-553.97784513,0.00034954,7]
[377225071,1754304401762,-500.0,0.00034954,7]
[377225072,1754304401784,-500.0,0.00034954,2]
[377225073,1754304401811,-500.0,0.00034954,7]
[377225074,1754304401831,-500.0,0.00034954,2]
[377225075,1754304401851,-500.0,0.00034954,7]
[377225076,1754304401876,-500.0,0.00034954,7]
[377225077,1754304401900,-500.0,0.00034954,2]
[377225078,1754304401922,-553.97784513,0.00034954,7]
[377225079,1754304401944,-500.0,0.00034954,2]
[377225080,1754304401965,-500.0,0.00034954,7]
[377225081,1754304401985,-500.0,0.00034954,7]
[377225082,1754304402007,-500.0,0.00034954,7]
[377225083,1754304402030,-500.0,0.00034954,2]
[377225084,1754304402051,-339.80214237,0.00034954,2]
[377225085,1754304402073,-198.65515312,0.00034954,7]
[377225086,1754304402100,-553.97784513,0.00034954,7]
[377225087,1754304402123,-500.0,0.00034954,2]
[377225088,1754304402144,-500.0,0.00034954,2]
[377225089,1754304402166,-553.97784513,0.00034954,7]
[377225090,1754304402187,-500.0,0.00034954,7]
[377225091,1754304402209,-500.0,0.00034954,7]
[377225092,1754304402231,-500.0,0.00034954,2]
[377225093,1754304402251,-500.0,0.00034954,2]
[377225094,1754304402272,-553.97784513,0.00034954,7]
[377225095,1754304402296,-500.0,0.00034954,2]
[377225096,1754304402318,-500.0,0.00034954,7]
[377225097,1754304402339,-635.59259691,0.00034954,2]
[377225098,1754304402361,-605.08943432,0.00034954,7]
[377225099,1754304402383,-553.97784513,0.00034954,7]
[377225100,1754304402404,-500.0,0.00034954,2]
[377225101,1754304402428,-500.0,0.00034954,2]
[377225102,1754304402450,-553.97784513,0.00034954,7]
[377225103,1754304402472,-500.0,0.00034954,7]
[377225104,1754304402493,-553.97784513,0.00034954,7]
[377225105,1754304402515,-500.0,0.00034954,7]
[377225106,1754304402537,-500.0,0.00034954,2]
[377225107,1754304402560,-500.0,0.00034954,2]
[377225108,1754304402583,-500.0,0.00034954,7]
[377225109,1754304402606,-553.97784513,0.00034954,7]
[377225110,1754304402627,-500.0,0.00034954,2]
[377225111,1754304402651,-500.0,0.00034954,2]
[377225112,1754304402672,-553.97784513,0.00034954,7]
[377225113,1754304402694,-500.0,0.00034954,7]
[377225114,1754304402715,-500.0,0.00034954,2]
[377225115,1754304402738,-97.26080714,0.00034954,7]
[377225116,1754304430021,168.0,0.00023,7]
[377225117,1754304450847,-2670.69482109,0.000349,31]
[377225118,1754304450870,-400.0,0.00034953,2]
[377225119,1754304450892,-370.57,0.00034954,10]
[377225120,1754304450913,-308.81,0.00034954,10]
[377225121,1754304450936,-456.71703799,0.00034954,7]
[377225122,1754304450957,-500.0,0.00034954,2]
[377225123,1754304450980,-500.0,0.00034954,2]
[377225124,1754304451003,-500.0,0.00034954,7]
[377225125,1754304451024,-553.97784513,0.00034954,7]
[377225126,1754304451048,-500.0,0.00034954,2]
[377225127,1754304451072,-500.0,0.00034954,2]
[377225128,1754304451094,-553.97784513,0.00034954,7]
[377225129,1754304451121,-500.0,0.00034954,7]
[377225130,1754304451144,-500.0,0.00034954,2]
[377225131,1754304451169,-500.0,0.00034954,2]
[377225132,1754304451195,-553.97784513,0.00034954,7]
[377225133,1754304451219,-505.0,0.00034954,7]
[377225134,1754304451244,-500.0,0.00034954,2]
[377225135,1754304451266,-553.97784513,0.00034954,7]
[377225136,1754304451289,-500.0,0.00034954,2]
[377225137,1754304451312,-500.0,0.00034954,7]
[377225138,1754304451336,-553.97784513,0.00034954,7]
[377225139,1754304451363,-500.0,0.00034954,2]
[377225140,1754304451387,-553.97784513,0.00034954,7]
[377225141,1754304451411,-500.0,0.00034954,2]
[377225142,1754304451436,-500.0,0.00034954,2]
[377225143,1754304451460,-500.0,0.00034954,7]
[377225144,1754304451485,-553.97784513,0.00034954,7]
[377225145,1754304451513,-500.0,0.00034954,2]
[377225146,1754304451536,-553.97784513,0.00034954,7]
[377225147,1754304451559,-500.0,0.00034954,7]
[377225148,1754304451584,-500.0,0.00034954,2]
[377225149,1754304451607,-553.97784513,0.00034954,7]
[377225150,1754304451630,-500.0,0.00034954,7]
[377225151,1754304451653,-500.0,0.00034954,2]
[377225152,1754304451676,-553.97784513,0.00034954,7]
[377225153,1754304451699,-500.0,0.00034954,7]
[377225154,1754304451723,-553.97784513,0.00034954,7]
[377225155,1754304451747,-500.0,0.00034954,7]
[377225156,1754304451769,-553.97784513,0.00034954,7]
[377225157,1754304451793,-500.0,0.00034954,2]
[377225158,1754304451815,-553.97784513,0.00034954,7]
[377225159,1754304451837,-553.97784513,0.00034954,7]
[377225160,1754304451860,-500.0,0.00034954,2]
[377225161,1754304451882,-553.97784513,0.00034954,7]
[377225162,1754304451904,-553.97784513,0.00034954,7]
[377225163,1754304451925,-553.97784513,0.00034954,7]
[377225164,1754304451949,-500.0,0.00034954,2]
[377225165,1754304451972,-553.97784513,0.00034954,7]
[377225166,1754304451995,-553.97784513,0.00034954,7]
[377225167,1754304452021,-500.0,0.00034954,2]
[377225168,1754304452044,-553.97784513,0.00034954,7]
[377225169,1754304452067,-553.97784513,0.00034954,7]
[377225170,1754304452090,-500.0,0.00034954,2]
[377225171,1754304452114,-553.97784513,0.00034954,7]
[377225172,1754304452136,-553.97784513,0.00034954,7]
[377225173,1754304452158,-553.97784513,0.00034954,7]
[377225174,1754304452181,-500.0,0.00034954,2]
[377225175,1754304452204,-553.97784513,0.00034954,7]
[377225176,1754304452226,-553.97784513,0.00034954,7]
[377225177,1754304452250,-560.77275279,0.00034954,2]
[377225178,1754304452271,-553.97784513,0.00034954,7]
[377225179,1754304452295,-553.97784513,0.00034954,7]
[377225180,1754304452316,-553.97784513,0.00034954,7]
[377225181,1754304452338,-553.97784513,0.00034954,7]
[377225182,1754304452360,-553.97784513,0.00034954,7]
[377225183,1754304452382,-553.97784513,0.00034954,7]
[377225184,1754304452404,-553.97784513,0.00034954,7]
[377225185,1754304452426,-553.97784513,0.00034954,7]
[377225186,1754304452447,-553.97784513,0.00034954,7]
[377225187,1754304452469,-553.97784513,0.00034954,7]
[377225188,1754304452491,-553.97784513,0.00034954,7]
[377225189,1754304452513,-553.97784513,0.00034954,7]
[377225190,1754304452535,-553.97784513,0.00034954,7]
[377225191,1754304452557,-553.97784513,0.00034954,7]
[377225192,1754304452580,-553.97784513,0.00034954,7]
[377225193,1754304452601,-553.97784513,0.00034954,7]
[377225194,1754304452624,-97.76589267,0.00034954,7]
[377225195,1754304457079,150.0,0.00032854,2]
[377225198,1754304541557,263.0,0.00033201,7]
[377225315,1754304626910,-232.47341853,0.00033383,2]
[377225316,1754304631094,-175.98,0.00033383,2]
[377225322,1754304632540,-699.79020707,0.00033383,2]
[377225323,1754304632555,-463.66376798,0.00033383,2]
[377225324,1754304632568,-1941.84147482,0.00033383,2]
[377225325,1754304632578,-3719.9528981,0.00033693,2]
[377225327,1754304632589,-474.22750732,0.00034699,2]
[377225329,1754304632599,-257.34,0.0003479,10]
[377225331,1754304632610,-214.45,0.0003479,10]
[377225335,1754304632619,-178.71,0.0003479,10]
[377225337,1754304632630,-400.0,0.00034798,2]
[377225338,1754304632640,-400.0,0.00034798,3]
[377225339,1754304632650,-400.0,0.00034798,3]
[377225341,1754304632660,-528.6517354,0.00034798,3]
[377225352,1754304632786,-1071.3482646,0.00034798,3]
[377225354,1754304632796,-400.0,0.00034798,3]
[377225356,1754304632806,-400.0,0.00034798,3]
[377225358,1754304632816,-500.0,0.00034799,7]
[377225359,1754304632825,-12908.81217289,0.00034799,2]
[377225361,1754304632837,-1419.65706577,0.00034799,2]
[377225363,1754304632847,-500.0,0.00034799,2]
[377225364,1754304632857,-500.0,0.00034799,2]
[377225365,1754304632867,-500.0,0.00034799,2]
[377225366,1754304632877,-163.55925969,0.00034799,2]
[377225367,1754304632886,-500.0,0.00034799,7]
[377225368,1754304632896,-500.0,0.00034799,7]
[377225369,1754304632906,-500.0,0.00034799,7]
[377225370,1754304632916,-500.0,0.00034799,7]
[377225371,1754304632925,-500.0,0.00034799,7]
[377225372,1754304632935,-500.0,0.00034799,7]
[377225373,1754304632944,-500.0,0.00034799,7]
[377225374,1754304632954,-500.0,0.00034799,7]
[377225375,1754304632964,-500.0,0.00034799,7]
[377225376,1754304632974,-500.0,0.00034799,7]
[377225377,1754304632983,-500.0,0.00034799,7]
[377225378,1754304632993,-650.0,0.00034799,7]
[377225379,1754304633003,-500.0,0.00034799,7]
[377225380,1754304633013,-500.0,0.00034799,7]
[377225381,1754304633023,-500.0,0.00034799,7]
[377225382,1754304633034,-500.0,0.00034799,7]
[377225383,1754304633044,-380.79745124,0.00034799,7]
[377225384,1754304633055,-37.19993156,0.00034799,7]
[377225385,1754304633068,-429.14,0.00034799,7]
[377225403,1754304638410,-500.0,0.00034798,7]
[377225404,1754304638420,-500.0,0.00034798,2]
[377225405,1754304638429,-500.0,0.00034798,7]
[377225406,1754304638438,-500.0,0.00034798,7]
[377225407,1754304638447,-289.45438159,0.00034798,7]
[377225408,1754304638456,-24.49760641,0.00034798,7]
[377225552,1754304640877,-0.0171394,0.00034798,7]
[377225561,1754304643551,-402.97729121,0.00034798,7]
[377225562,1754304643605,-72.50796298,0.00034798,7]
[377225563,1754304643615,-500.0,0.00034798,2]
[377225564,1754304643625,-500.0,0.00034798,7]
[377225565,1754304643634,-281.6824469,0.00034798,7]
[377225566,1754304643646,-218.3175531,0.00034798,7]
[377225567,1754304643655,-500.0,0.00034798,7]
[377225568,1754304643665,-62.0770314,0.00034798,7]
[377225569,1754304643676,-437.9229686,0.00034798,7]
[377225570,1754304643686,-500.0,0.00034798,2]
[377225571,1754304643695,-238.31137336,0.00034798,7]
[377225572,1754304643705,-500.0,0.00034798,7]
[377225573,1754304643715,-323.76565804,0.00034798,7]
[377225583,1754304647772,-0.03147124,0.00034798,7]
[377225584,1754304647884,-121.20287072,0.00034798,7]
[377225585,1754304647894,-500.0,0.00034798,2]
[377225586,1754304647904,-500.0,0.00034798,7]
[377225587,1754304647913,-500.0,0.00034798,7]
[377225588,1754304647923,-500.0,0.00034798,2]
[377225589,1754304647932,-500.0,0.00034798,2]
[377225590,1754304647941,-556.07727528,0.00034798,2]
[377225591,1754304647951,-500.0,0.00034798,2]